fUST/lending_fUST_20250708
["ID","MTS","AMOUNT","RATE_DAILY","PERIOD"]
[370293114,1751939438727,-576.0368563,0.00019452,2]
[370293115,1751939438737,-575.3635079,0.000195,2]
[370293116,1751939438747,-230.48668418,0.00019543,2]
[370293117,1751939438757,-214.06929976,0.00019543,2]
[370293118,1751939438766,-160.0,0.00019543,2]
[370293119,1751939438775,-160.0,0.00019543,2]
[370293120,1751939438785,-837.79946008,0.00019543,2]
[370293121,1751939438794,-848.27993403,0.00019543,2]
[370293122,1751939438804,-160.0,0.00019543,2]
[370293123,1751939438814,-160.0,0.00019543,2]
[370293124,1751939438823,-12584.46609586,0.00019543,2]
[370293125,1751939438832,-160.0,0.00019543,2]
[370293126,1751939438843,-160.0,0.00019543,2]
[370293127,1751939438852,-215.21338352,0.00019543,2]
[370293128,1751939438861,-160.0,0.00019543,2]
[370293129,1751939438871,-154.7705629,0.00019554,2]
[370293130,1751939438880,-153.0,0.00019554,2]
[370293131,1751939438890,-153.0,0.00019554,2]
[370293132,1751939438899,-153.0,0.00019554,2]
[370293133,1751939438909,-1488.15876596,0.00019682,2]
[370293134,1751939438918,-150.0,0.00019689,2]
[370293135,1751939438928,-151.0,0.00019714,2]
[370293136,1751939438937,-154.811063,0.00019714,2]
[370293137,1751939438947,-460.0,0.00019726,2]
[370293138,1751939438957,-471.20668638,0.00019726,2]
[370293139,1751939438966,-603.83596458,0.00019726,2]
[370293140,1751939438975,-165.45557,0.00019726,2]
[370293141,1751939438985,-151.0,0.00019726,2]
[370293142,1751939438994,-151.0,0.00019726,2]
[370293143,1751939439004,-151.0,0.00019726,2]
[370293144,1751939439013,-460.0,0.00019726,2]
[370293145,1751939439023,-151.0,0.00019726,2]
[370293146,1751939439033,-151.0,0.00019726,2]
[370293147,1751939439043,-151.0,0.00019726,2]
[370293148,1751939439053,-151.0,0.00019726,2]
[370293149,1751939439063,-151.0,0.00019726,2]
[370293150,1751939439073,-186.068863,0.00019726,2]
[370293151,1751939439083,-151.670521,0.00019726,2]
[370293152,1751939439092,-701.26,0.00019726,2]
[370293153,1751939439102,-531.48,0.00019726,2]
[370293154,1751939439112,-460.0,0.00019726,2]
[370293155,1751939439121,-157.252722,0.00019726,2]
[370293156,1751939439131,-460.0,0.00019726,2]
[370293157,1751939439140,-470.10474019,0.00019726,2]
[370293158,1751939439150,-460.0,0.00019726,2]
[370293159,1751939439159,-460.0,0.00019726,2]
[370293160,1751939439169,-460.0,0.00019726,2]
[370293161,1751939439178,-535.76,0.00019726,2]
[370293162,1751939439188,-460.0,0.00019726,2]
[370293163,1751939439197,-460.0,0.00019726,2]
[370293164,1751939439207,-460.0,0.00019726,2]
[370293165,1751939439216,-467.99684841,0.00019726,2]
[370293167,1751939439225,-460.0,0.00019726,2]
[370293169,1751939439235,-483.53,0.00019726,2]
[370293171,1751939439244,-460.0,0.00019726,2]
[370293172,1751939439253,-460.0,0.00019726,2]
[370293173,1751939439263,-460.0,0.00019726,2]
[370293174,1751939439273,-540.95092469,0.00019726,2]
[370293175,1751939439284,-156.551542,0.00019726,2]
[370293176,1751939439293,-460.0,0.00019726,2]
[370293177,1751939439310,-460.0,0.00019726,2]
[370293178,1751939439319,-460.0,0.00019726,2]
[370293179,1751939439329,-460.0,0.00019726,2]
[370293180,1751939439338,-744.6,0.00019726,2]
[370293181,1751939439348,-460.0,0.00019726,2]
[370293182,1751939439357,-564.81,0.00019726,2]
[370293183,1751939439367,-460.0,0.00019726,2]
[370293184,1751939439376,-1271.29,0.00019726,2]
[370293185,1751939439386,-2905.42,0.00019726,2]
[370293186,1751939439396,-2489.88,0.00019726,2]
[370293187,1751939439406,-460.0,0.00019726,2]
[370293188,1751939439415,-1991.34,0.00019726,2]
[370293189,1751939439425,-650.72,0.00019726,2]
[370293190,1751939439434,-3629.52,0.00019726,2]
[370293191,1751939439444,-526.11,0.00019726,2]
[370293192,1751939439454,-659.52,0.00019726,2]
[370293193,1751939439463,-151.0,0.00019726,2]
[370293194,1751939439472,-1824.17,0.00019726,2]
[370293195,1751939439482,-216.72232626,0.00019726,2]
[370293197,1751939439491,-151.984118,0.00019726,2]
[370293198,1751939439500,-559.28,0.00019726,2]
[370293200,1751939439510,-460.0,0.00019726,2]
[370293202,1751939439519,-776.16,0.00019726,2]
[370293203,1751939439529,-1786.09,0.00019726,2]
[370293204,1751939439538,-674.59,0.00019726,2]
[370293205,1751939439548,-460.0,0.00019726,2]
[370293206,1751939439558,-717.56,0.00019726,2]
[370293207,1751939439568,-460.0,0.00019726,2]
[370293208,1751939439577,-151.0,0.00019726,2]
[370293209,1751939439587,-153.507318,0.00019726,2]
[370293210,1751939439596,-2900.6,0.00019726,2]
[370293211,1751939439606,-156.461736,0.00019726,2]
[370293212,1751939439616,-460.0,0.00019726,2]
[370293213,1751939439626,-804.93,0.00019726,2]
[370293214,1751939439635,-460.0,0.00019726,2]
[370293215,1751939439645,-460.0,0.00019726,2]
[370293217,1751939439654,-573.23,0.00019726,2]
[370293219,1751939439663,-1880.93,0.00019726,2]
[370293220,1751939439673,-460.0,0.00019726,2]
[370293221,1751939439682,-799.89,0.00019726,2]
[370293222,1751939439692,-1276.08,0.00019726,2]
[370293223,1751939439701,-630.46,0.00019726,2]
[370293224,1751939439711,-476.78,0.00019726,2]
[370293225,1751939439720,-521.33,0.00019726,2]
[370293226,1751939439729,-1938.63,0.00019726,2]
[370293227,1751939439738,-623.43,0.00019726,2]
[370293228,1751939439748,-572.1,0.00019726,2]
[370293230,1751939439757,-460.0,0.00019726,2]
[370293232,1751939439766,-771.38,0.00019726,2]
[370293234,1751939439776,-2617.89,0.00019726,2]
[370293236,1751939439785,-460.0,0.00019726,2]
[370293238,1751939439794,-667.21,0.00019726,2]
[370293240,1751939439805,-460.0,0.00019726,2]
[370293242,1751939439815,-742.47,0.00019726,2]
[370293244,1751939439824,-460.0,0.00019726,2]
[370293246,1751939439834,-5569.52,0.00019726,2]
[370293248,1751939439843,-4581.84,0.00019726,2]
[370293250,1751939439852,-460.0,0.00019726,2]
[370293252,1751939439861,-460.0,0.00019726,2]
[370293254,1751939439871,-1380.03,0.00019726,2]
[370293256,1751939439880,-460.0,0.00019726,2]
[370293258,1751939439891,-460.0,0.00019726,2]
[370293260,1751939439900,-460.0,0.00019726,2]
[370293262,1751939439909,-460.0,0.00019726,2]
[370293264,1751939439918,-460.0,0.00019726,2]
[370293266,1751939439927,-1179.29,0.00019726,2]
[370293268,1751939439937,-4001.14,0.00019726,2]
[370293270,1751939439946,-460.0,0.00019726,2]
[370293272,1751939439955,-678.22,0.00019726,2]
[370293274,1751939439964,-460.0,0.00019726,2]
[370293275,1751939439973,-460.0,0.00019726,2]
[370293277,1751939439983,-906.17,0.00019726,2]
[370293279,1751939439993,-460.0,0.00019726,2]
[370293282,1751939440003,-582.33,0.00019726,2]
[370293284,1751939440012,-3402.31,0.00019726,2]
[370293285,1751939440022,-576.0368563,0.00019726,2]
[370293287,1751939440032,-1148.8198392,0.00019726,2]
[370293289,1751939440041,-500.0,0.00019737,2]
[370293291,1751939440051,-500.0,0.00019737,2]
[370293293,1751939440060,-501.19165121,0.00019737,2]
[370293295,1751939440070,-501.98349229,0.00019764,2]
[370293297,1751939440079,-500.90270991,0.00019764,2]
[370293299,1751939440088,-500.0,0.00019764,2]
[370293301,1751939440098,-500.0,0.00019764,2]
[370293303,1751939440107,-168.0,0.00019782,2]
[370293305,1751939440116,-168.0,0.00019805,2]
[370293307,1751939440126,-501.59566665,0.00019815,2]
[370293309,1751939440135,-501.29290278,0.00019815,2]
[370293311,1751939440144,-500.82817838,0.00019815,2]
[370293313,1751939440154,-500.0,0.00019815,2]
[370293315,1751939440164,-369.33719406,0.00019815,2]
[370293317,1751939440173,-500.68777055,0.00019815,2]
[370293319,1751939440184,-969.939,0.00019832,2]
[370293321,1751939440193,-647.898,0.00019832,2]
[370293323,1751939440202,-2153.0,0.00019832,2]
[370293325,1751939440212,-168.0,0.00019841,2]
[370293327,1751939440221,-25000.0,0.0001986,2]
[370293329,1751939440230,-2968.35204112,0.000199,2]
[370293331,1751939440240,-501.9662625,0.0001996,2]
[370293333,1751939440249,-913.84039,0.00019999,2]
[370293335,1751939440259,-319.0179139,0.0002,2]
[370293337,1751939440270,-152.370417,0.0002,2]
[370293339,1751939440279,-152.714297,0.0002,2]
[370293341,1751939440288,-151.0,0.0002,2]
[370293343,1751939440301,-460.0,0.0002,2]
[370293345,1751939440310,-151.0,0.0002,2]
[370293347,1751939440319,-151.0,0.0002,2]
[370293348,1751939440328,-151.0,0.0002,2]
[370293350,1751939440338,-701.26,0.0002,2]
[370293352,1751939440349,-531.48,0.0002,2]
[370293354,1751939440358,-369.31376096,0.0002,2]
[370293356,1751939440367,-460.0,0.0002,2]
[370293358,1751939440378,-460.0,0.0002,2]
[370293360,1751939440387,-460.0,0.0002,2]
[370293362,1751939440397,-460.0,0.0002,2]
[370293364,1751939440405,-535.76,0.0002,2]
[370293366,1751939440415,-460.0,0.0002,2]
[370293368,1751939440423,-460.0,0.0002,2]
[370293370,1751939440433,-460.0,0.0002,2]
[370293372,1751939440442,-460.0,0.0002,2]
[370293374,1751939440451,-483.53,0.0002,2]
[370293376,1751939440461,-460.0,0.0002,2]
[370293377,1751939440470,-460.0,0.0002,2]
[370293379,1751939440480,-477.11192346,0.0002,2]
[370293381,1751939440489,-460.0,0.0002,2]
[370293383,1751939440498,-460.0,0.0002,2]
[370293385,1751939440508,-460.0,0.0002,2]
[370293387,1751939440517,-226.10322211,0.0002,2]
[370293389,1751939440526,-744.6,0.0002,2]
[370293391,1751939440535,-460.0,0.0002,2]
[370293393,1751939440544,-564.81,0.0002,2]
[370293395,1751939440554,-460.0,0.0002,2]
[370293397,1751939440563,-1271.29,0.0002,2]
[370293399,1751939440572,-2905.42,0.0002,2]
[370293401,1751939440582,-2489.88,0.0002,2]
[370293403,1751939440591,-460.0,0.0002,2]
[370293417,1751939440716,-1991.34,0.0002,2]
[370293419,1751939440728,-650.72,0.0002,2]
[370293421,1751939440737,-3629.52,0.0002,2]
[370293423,1751939440746,-526.11,0.0002,2]
[370293425,1751939440755,-659.52,0.0002,2]
[370293427,1751939440764,-1824.17,0.0002,2]
[370293429,1751939440774,-559.28,0.0002,2]
[370293431,1751939440782,-460.0,0.0002,2]
[370293432,1751939440791,-776.16,0.0002,2]
[370293434,1751939440801,-1786.09,0.0002,2]
[370293437,1751939440811,-674.59,0.0002,2]
[370293438,1751939440820,-460.0,0.0002,2]
[370293441,1751939440831,-717.56,0.0002,2]
[370293442,1751939440842,-460.0,0.0002,2]
[370293444,1751939440851,-2900.6,0.0002,2]
[370293446,1751939440861,-460.0,0.0002,2]
[370293448,1751939440870,-804.93,0.0002,2]
[370293450,1751939440879,-460.0,0.0002,2]
[370293452,1751939440889,-464.27796761,0.0002,2]
[370293454,1751939440898,-573.23,0.0002,2]
[370293456,1751939440907,-1880.93,0.0002,2]
[370293458,1751939440916,-460.0,0.0002,2]
[370293460,1751939440926,-799.89,0.0002,2]
[370293462,1751939440935,-1276.08,0.0002,2]
[370293464,1751939440943,-630.46,0.0002,2]
[370293466,1751939440953,-476.78,0.0002,2]
[370293468,1751939440962,-521.33,0.0002,2]
[370293470,1751939440971,-1938.63,0.0002,2]
[370293472,1751939440981,-623.43,0.0002,2]
[370293474,1751939440990,-572.1,0.0002,2]
[370293476,1751939441000,-460.0,0.0002,2]
[370293478,1751939441010,-771.38,0.0002,2]
[370293480,1751939441019,-2617.89,0.0002,2]
[370293482,1751939441029,-460.0,0.0002,2]
[370293484,1751939441038,-667.21,0.0002,2]
[370293486,1751939441047,-460.0,0.0002,2]
[370293488,1751939441058,-742.47,0.0002,2]
[370293490,1751939441067,-460.0,0.0002,2]
[370293492,1751939441076,-5569.52,0.0002,2]
[370293494,1751939441085,-4581.84,0.0002,2]
[370293496,1751939441094,-460.0,0.0002,2]
[370293498,1751939441103,-460.0,0.0002,2]
[370293500,1751939441115,-1380.03,0.0002,2]
[370293502,1751939441124,-460.0,0.0002,2]
[370293504,1751939441133,-471.83131526,0.0002,2]
[370293506,1751939441142,-460.0,0.0002,2]
[370293508,1751939441151,-460.0,0.0002,2]
[370293510,1751939441160,-460.0,0.0002,2]
[370293512,1751939441169,-1179.29,0.0002,2]
[370293514,1751939441179,-4001.14,0.0002,2]
[370293516,1751939441188,-460.0,0.0002,2]
[370293518,1751939441197,-678.22,0.0002,2]
[370293520,1751939441206,-460.0,0.0002,2]
[370293522,1751939441215,-460.0,0.0002,2]
[370293524,1751939441224,-906.17,0.0002,2]
[370293525,1751939441234,-460.0,0.0002,2]
[370293527,1751939441243,-582.33,0.0002,2]
[370293529,1751939441252,-3402.31,0.0002,2]
[370293531,1751939441262,-168.0,0.00020026,2]
[370293533,1751939441271,-168.0,0.00020049,2]
[370293535,1751939441280,-642.0,0.000201,2]
[370293537,1751939441290,-2968.35204112,0.00020107,2]
[370293539,1751939441303,-151.0,0.00020107,2]
[370293541,1751939441311,-168.0,0.00020136,2]
[370293543,1751939441321,-1488.15876596,0.00020151,2]
[370293545,1751939441330,-151.0,0.00020262,2]
[370293547,1751939441340,-151.0,0.00020262,2]
[370293549,1751939441350,-151.0,0.00020262,2]
[370293551,1751939441359,-151.0,0.00020273,2]
[370293553,1751939441368,-151.0,0.00020273,2]
[370293555,1751939441378,-151.0,0.00020273,2]
[370293557,1751939441388,-151.120182,0.00020273,2]
[370293559,1751939441397,-153.788267,0.00020273,2]
[370293561,1751939441406,-203.62978,0.00020273,2]
[370293563,1751939441416,-156.09229,0.00020273,2]
[370293565,1751939441425,-151.0,0.00020273,2]
[370293567,1751939441434,-151.0,0.00020273,2]
[370293569,1751939441443,-473.75855048,0.00020273,2]
[370293571,1751939441452,-151.0,0.00020273,2]
[370293573,1751939441462,-151.0,0.00020273,2]
[370293574,1751939441471,-286.0,0.00020273,2]
[370293576,1751939441480,-701.26,0.00020273,2]
[370293578,1751939441489,-531.48,0.00020273,2]
[370293580,1751939441499,-460.0,0.00020273,2]
[370293582,1751939441508,-460.0,0.00020273,2]
[370293584,1751939441518,-472.7698808,0.00020273,2]
[370293586,1751939441527,-460.0,0.00020273,2]
[370293588,1751939441537,-151.0,0.00020273,2]
[370293590,1751939441546,-535.76,0.00020273,2]
[370293592,1751939441556,-460.0,0.00020273,2]
[370293594,1751939441565,-460.0,0.00020273,2]
[370293596,1751939441575,-365.33564814,0.00020273,2]
[370293598,1751939441584,-262.12316492,0.00020273,2]
[370293600,1751939441594,-483.53,0.00020273,2]
[370293602,1751939441603,-460.0,0.00020273,2]
[370293604,1751939441613,-518.94325809,0.00020273,2]
[370293606,1751939441622,-460.0,0.00020273,2]
[370293608,1751939441632,-460.0,0.00020273,2]
[370293610,1751939441642,-460.0,0.00020273,2]
[370293612,1751939441654,-744.6,0.00020273,2]
[370293614,1751939441663,-460.0,0.00020273,2]
[370293616,1751939441674,-564.81,0.00020273,2]
[370293618,1751939441684,-460.0,0.00020273,2]
[370293620,1751939441693,-1271.29,0.00020273,2]
[370293622,1751939441703,-2905.42,0.00020273,2]
[370293624,1751939441712,-2489.88,0.00020273,2]
[370293626,1751939441722,-460.0,0.00020273,2]
[370293628,1751939441731,-1991.34,0.00020273,2]
[370293630,1751939441739,-650.72,0.00020273,2]
[370293632,1751939441748,-3629.52,0.00020273,2]
[370293634,1751939441757,-526.11,0.00020273,2]
[370293636,1751939441766,-659.52,0.00020273,2]
[370293637,1751939441775,-1824.17,0.00020273,2]
[370293639,1751939441785,-559.28,0.00020273,2]
[370293641,1751939441794,-460.0,0.00020273,2]
[370293643,1751939441804,-776.16,0.00020273,2]
[370293645,1751939441814,-1786.09,0.00020273,2]
[370293647,1751939441824,-674.59,0.00020273,2]
[370293649,1751939441833,-460.0,0.00020273,2]
[370293651,1751939441843,-717.56,0.00020273,2]
[370293653,1751939441853,-460.0,0.00020273,2]
[370293655,1751939441862,-2900.6,0.00020273,2]
[370293657,1751939441872,-460.0,0.00020273,2]
[370293659,1751939441882,-804.93,0.00020273,2]
[370293661,1751939441892,-460.0,0.00020273,2]
[370293663,1751939441901,-573.23,0.00020273,2]
[370293665,1751939441910,-1880.93,0.00020273,2]
[370293667,1751939441920,-460.0,0.00020273,2]
[370293669,1751939441930,-799.89,0.00020273,2]
[370293671,1751939441939,-1276.08,0.00020273,2]
[370293673,1751939441948,-630.46,0.00020273,2]
[370293675,1751939441957,-476.78,0.00020273,2]
[370293677,1751939441966,-521.33,0.00020273,2]
[370293679,1751939441976,-1938.63,0.00020273,2]
[370293681,1751939441985,-623.43,0.00020273,2]
[370293683,1751939441995,-572.1,0.00020273,2]
[370293685,1751939442004,-460.0,0.00020273,2]
[370293686,1751939442013,-771.38,0.00020273,2]
[370293688,1751939442023,-2617.89,0.00020273,2]
[370293690,1751939442032,-460.0,0.00020273,2]
[370293692,1751939442042,-667.21,0.00020273,2]
[370293694,1751939442051,-460.0,0.00020273,2]
[370293696,1751939442061,-742.47,0.00020273,2]
[370293698,1751939442070,-460.0,0.00020273,2]
[370293700,1751939442079,-5569.52,0.00020273,2]
[370293702,1751939442088,-4581.84,0.00020273,2]
[370293704,1751939442098,-460.0,0.00020273,2]
[370293706,1751939442107,-460.0,0.00020273,2]
[370293708,1751939442117,-1380.03,0.00020273,2]
[370293710,1751939442127,-460.0,0.00020273,2]
[370293712,1751939442136,-460.0,0.00020273,2]
[370293714,1751939442145,-460.0,0.00020273,2]
[370293715,1751939442154,-460.0,0.00020273,2]
[370293717,1751939442163,-1179.29,0.00020273,2]
[370293719,1751939442173,-4001.14,0.00020273,2]
[370293721,1751939442182,-460.0,0.00020273,2]
[370293723,1751939442192,-678.22,0.00020273,2]
[370293725,1751939442202,-460.0,0.00020273,2]
[370293727,1751939442212,-460.0,0.00020273,2]
[370293729,1751939442221,-906.17,0.00020273,2]
[370293731,1751939442231,-460.0,0.00020273,2]
[370293733,1751939442240,-582.33,0.00020273,2]
[370293735,1751939442249,-3402.31,0.00020273,2]
[370293737,1751939442258,-159.759863,0.00020274,2]
[370293739,1751939442268,-151.0,0.00020274,2]
[370293741,1751939442277,-506.38225771,0.00020285,2]
[370293743,1751939442286,-1000.0,0.00020285,2]
[370293745,1751939442298,-635.0,0.00020296,2]
[370293747,1751939442309,-504.64566651,0.00020312,2]
[370293748,1751939442318,-1000.0,0.00020312,2]
[370293749,1751939442327,-2968.35204112,0.00020314,3]
[370293750,1751939442336,-318.0,0.00020335,2]
[370293751,1751939442345,-318.0,0.00020335,2]
[370293752,1751939442354,-318.0,0.00020335,2]
[370293753,1751939442364,-318.0,0.00020335,2]
[370293754,1751939442373,-318.0,0.00020335,2]
[370293755,1751939442382,-318.0,0.00020335,2]
[370293756,1751939442392,-318.0,0.00020335,2]
[370293757,1751939442401,-318.0,0.00020335,2]
[370293758,1751939442411,-318.0,0.00020335,2]
[370293759,1751939442420,-318.0,0.00020335,2]
[370293760,1751939442429,-318.0,0.00020335,2]
[370293761,1751939442437,-318.0,0.00020335,2]
[370293762,1751939442446,-318.0,0.00020335,2]
[370293763,1751939442455,-318.0,0.00020335,2]
[370293764,1751939442466,-318.0,0.00020335,2]
[370293765,1751939442475,-318.0,0.00020335,2]
[370293766,1751939442485,-318.0,0.00020335,2]
[370293768,1751939442494,-318.0,0.00020335,2]
[370293769,1751939442503,-318.0,0.00020335,2]
[370293771,1751939442513,-318.0,0.00020335,2]
[370293773,1751939442522,-318.0,0.00020335,2]
[370293775,1751939442531,-318.0,0.00020335,2]
[370293777,1751939442540,-318.0,0.00020335,2]
[370293779,1751939442550,-318.0,0.00020335,2]
[370293781,1751939442559,-318.0,0.00020335,2]
[370293783,1751939442569,-318.0,0.00020335,2]
[370293785,1751939442578,-318.0,0.00020335,2]
[370293787,1751939442587,-318.0,0.00020335,2]
[370293789,1751939442596,-318.0,0.00020335,2]
[370293791,1751939442606,-318.0,0.00020335,2]
[370293793,1751939442615,-318.0,0.00020335,2]
[370293795,1751939442624,-318.0,0.00020335,2]
[370293797,1751939442633,-318.0,0.00020335,2]
[370293799,1751939442642,-318.0,0.00020335,2]
[370293801,1751939442651,-318.0,0.00020335,2]
[370293803,1751939442661,-318.0,0.00020335,2]
[370293804,1751939442670,-399.52424031,0.00020335,2]
[370293806,1751939442680,-500.0,0.00020363,2]
[370293808,1751939442691,-518.833101,0.00020404,4]
[370293810,1751939442702,-2968.35204112,0.00020521,3]
[370293812,1751939442711,-800.0,0.00020532,2]
[370293814,1751939442722,-800.0,0.00020535,2]
[370293816,1751939442732,-1037.82,0.00020538,3]
[370293818,1751939442742,-518.92,0.00020538,3]
[370293820,1751939442751,-800.0,0.00020545,2]
[370293822,1751939442761,-506.91106255,0.00020547,14]
[370293825,1751939442774,-151.0,0.00020547,2]
[370293838,1751939442889,-198.968696,0.00020547,2]
[370293840,1751939442899,-701.26,0.00020547,2]
[370293842,1751939442908,-531.48,0.00020547,2]
[370293844,1751939442917,-460.0,0.00020547,2]
[370293846,1751939442927,-460.0,0.00020547,2]
[370293848,1751939442936,-161.94910628,0.00020547,2]
[370293850,1751939442945,-151.0,0.00020547,2]
[370293851,1751939442954,-535.76,0.00020547,2]
[370293853,1751939442963,-303.0970693,0.00020547,2]
[370293855,1751939442973,-460.0,0.00020547,2]
[370293857,1751939442982,-483.53,0.00020547,2]
[370293859,1751939442992,-460.0,0.00020547,2]
[370293861,1751939443001,-222.64083375,0.00020547,2]
[370293863,1751939443011,-460.0,0.00020547,2]
[370293865,1751939443020,-460.0,0.00020547,2]
[370293867,1751939443030,-744.6,0.00020547,2]
[370293869,1751939443040,-460.0,0.00020547,2]
[370293871,1751939443049,-564.81,0.00020547,2]
[370293873,1751939443058,-460.0,0.00020547,2]
[370293875,1751939443068,-1271.29,0.00020547,2]
[370293877,1751939443077,-2905.42,0.00020547,2]
[370293879,1751939443086,-2489.88,0.00020547,2]
[370293881,1751939443095,-460.0,0.00020547,2]
[370293883,1751939443106,-1991.34,0.00020547,2]
[370293885,1751939443115,-650.72,0.00020547,2]
[370293887,1751939443125,-3629.52,0.00020547,2]
[370293889,1751939443135,-526.11,0.00020547,2]
[370293891,1751939443143,-659.52,0.00020547,2]
[370293893,1751939443153,-1824.17,0.00020547,2]
[370293895,1751939443163,-559.28,0.00020547,2]
[370293897,1751939443172,-460.0,0.00020547,2]
[370293899,1751939443181,-776.16,0.00020547,2]
[370293901,1751939443191,-1786.09,0.00020547,2]
[370293903,1751939443200,-674.59,0.00020547,2]
[370293905,1751939443210,-460.0,0.00020547,2]
[370293907,1751939443219,-717.56,0.00020547,2]
[370293909,1751939443229,-460.0,0.00020547,2]
[370293911,1751939443238,-2900.6,0.00020547,2]
[370293913,1751939443247,-460.0,0.00020547,2]
[370293915,1751939443256,-804.93,0.00020547,2]
[370293916,1751939443266,-460.0,0.00020547,2]
[370293917,1751939443276,-573.23,0.00020547,2]
[370293918,1751939443285,-1880.93,0.00020547,2]
[370293919,1751939443295,-800.0,0.00020547,2]
[370293920,1751939443306,-799.89,0.00020547,2]
[370293921,1751939443319,-1276.08,0.00020547,2]
[370293922,1751939443328,-630.46,0.00020547,2]
[370293924,1751939443338,-476.78,0.00020547,2]
[370293925,1751939443347,-521.33,0.00020547,2]
[370293926,1751939443357,-1938.63,0.00020547,2]
[370293927,1751939443366,-623.43,0.00020547,2]
[370293928,1751939443376,-572.1,0.00020547,2]
[370293929,1751939443386,-460.0,0.00020547,2]
[370293930,1751939443395,-771.38,0.00020547,2]
[370293931,1751939443406,-2617.89,0.00020547,2]
[370293932,1751939443415,-460.0,0.00020547,2]
[370293933,1751939443425,-667.21,0.00020547,2]
[370293934,1751939443434,-466.74611587,0.00020547,2]
[370293935,1751939443443,-742.47,0.00020547,2]
[370293936,1751939443453,-460.0,0.00020547,2]
[370293937,1751939443462,-5569.52,0.00020547,2]
[370293938,1751939443471,-4581.84,0.00020547,2]
[370293939,1751939443481,-460.0,0.00020547,2]
[370293940,1751939443489,-209.68756546,0.00020547,2]
[370293941,1751939443499,-1380.03,0.00020547,2]
[370293943,1751939443509,-366.50664104,0.00020547,2]
[370293945,1751939443518,-460.0,0.00020547,2]
[370293947,1751939443528,-460.0,0.00020547,2]
[370293949,1751939443538,-460.0,0.00020547,2]
[370293951,1751939443547,-4001.14,0.00020547,2]
[370293953,1751939443557,-1179.29,0.00020547,2]
[370293955,1751939443567,-460.0,0.00020547,2]
[370293957,1751939443576,-678.22,0.00020547,2]
[370293959,1751939443585,-460.0,0.00020547,2]
[370293961,1751939443595,-460.0,0.00020547,2]
[370293963,1751939443605,-906.17,0.00020547,2]
[370293965,1751939443614,-470.59991296,0.00020547,2]
[370293967,1751939443623,-582.33,0.00020547,2]
[370293969,1751939443632,-3402.31,0.00020547,2]
[370293971,1751939443641,-1802.0,0.00020553,2]
[370293973,1751939443651,-151.0,0.00020553,2]
[370293975,1751939443660,-217.85830736,0.00020558,2]
[370293977,1751939443670,-800.0,0.00020575,2]
[370293979,1751939443680,-800.0,0.0002058,2]
[370293981,1751939443690,-800.0,0.00020582,2]
[370293983,1751939443699,-800.0,0.00020584,2]